fUSD/lending_fUSD_20240223
["ID","MTS","AMOUNT","RATE_DAILY","PERIOD"]
[314964019,1708702258805,-512.78,0.00028493,2]
[314964020,1708702258816,-512.78,0.0002863,2]
[314964021,1708702258826,-512.78,0.00028767,2]
[314964022,1708702258838,-512.78,0.00028904,2]
[314964023,1708702258848,-163.0,0.00029811,2]
[314964024,1708702258858,-23930.01483724,0.0002988,2]
[314964025,1708702258872,-21659.94122177,0.0002988,2]
[314964026,1708702259237,-532.227394,0.00026296,2]
[314964027,1708702259349,-946.20341482,0.00025221,2]
[314964028,1708702259361,-479.92658518,0.00025221,2]
[314964029,1708702259371,-4.86483029,0.00026296,2]
[314964030,1708702259380,-537.09222427,0.00026355,2]
[314964031,1708702259390,-2155.48364747,0.00027396,2]
[314964032,1708702259400,-158.11957464,0.00028219,2]
[314964033,1708702259414,-341.88042536,0.00028219,2]
[314964034,1708702259423,-500.0,0.00028356,2]
[314964035,1708702259433,-500.0,0.00028493,2]
[314964036,1708702259443,-283.91703731,0.00028599,15]
[314964037,1708702259453,-70.82542556,0.0002863,2]
[314964038,1708702259465,-429.17457444,0.0002863,2]
[314964039,1708702259475,-231.39192584,0.00028767,2]
[314964040,1708702259487,-268.60807416,0.00028767,2]
[314964041,1708702259496,-500.0,0.00028904,2]
[314964042,1708702259506,-9.99950584,0.00029041,2]
[314964043,1708702259547,-502.78049416,0.00029041,2]
[314964044,1708702259556,-500.0,0.00029041,2]
[314964045,1708702259565,-512.78,0.00029178,2]
[314964046,1708702259574,-500.0,0.00029178,2]
[314964047,1708702259585,-102.56280885,0.00029315,2]
[314964048,1708702259601,-410.21719115,0.00029315,2]
[314964049,1708702259611,-500.0,0.00029315,2]
[314964050,1708702259620,-108.74649545,0.00029452,2]
[314964051,1708702259631,-371.5500007,0.00029452,2]
[314964052,1708702259644,-32.48350385,0.00029452,2]
[314964053,1708702259653,-500.0,0.00029452,2]
[314964054,1708702259663,-512.78,0.00029589,2]
[314964055,1708702259674,-512.78,0.00029726,2]
[314964056,1708702259684,-512.78,0.00029863,2]
[314964057,1708702259694,-601717.89768365,0.0002988,2]
[314964058,1708702259703,-260907.21301689,0.0002988,2]
[314964059,1708702259713,-176514.82305047,0.0002988,2]
[314964060,1708702259722,-359257.74126287,0.0002988,2]
[314964061,1708702259741,-500.0,0.00029589,2]
[314964062,1708702259751,-365.55744019,0.0002988,2]
[314964063,1708702259764,-2147.82791855,0.0002988,2]
[314964064,1708702259776,-517.96100207,0.0002988,2]
[314964065,1708702259883,-448.15953551,0.0002522,2]
[314964066,1708702259892,-537.09222427,0.00026413,2]
[314964067,1708702259902,-500.0,0.00027397,2]
[314964068,1708702259912,-500.0,0.00027397,2]
[314964069,1708702259921,-500.0,0.00027534,2]
[314964070,1708702259931,-535.56,0.00027534,2]
[314964071,1708702259941,-500.0,0.00027671,2]
[314964072,1708702259950,-558.22,0.00027808,2]
[314964073,1708702259960,-430.86554509,0.00029726,2]
[314964074,1708702259969,-1111.30415479,0.0002988,2]
[314964075,1708702260028,-500.0,0.00027397,2]
[314964076,1708702260037,-160.58368668,0.0002988,2]
[314964077,1708702260049,-7226.76605911,0.0002988,2]
[314964078,1708702260060,-2280.04790144,0.0002988,2]
[314964079,1708702385359,1000.0,0.00023401,2]
[314964080,1708702529796,896.82911587,0.000234,2]
[314964081,1708702743876,715.64,0.00023179,2]
[314964082,1708702781256,-150.0,0.00029971,120]
[314964088,1708703312222,679.85,0.0002286,2]
[314964103,1708703432074,-3049.36185881,0.00024648,2]
[314964104,1708703432085,-1049.28297181,0.00024649,2]
[314964105,1708703432095,-17201.4421,0.0002465,2]
[314964106,1708703432110,-829.61400412,0.00024693,2]
[314964107,1708703432156,-527.8368113,0.00024693,2]
[314964108,1708703432168,-415.22302036,0.00024693,2]
[314964109,1708703432180,-781.92109416,0.00024693,2]
[314964110,1708703432209,-150.40507006,0.00024693,2]
[314964111,1708703432218,-630.62,0.00024752,2]
[314964112,1708703432228,-250.0,0.0002476,2]
[314964113,1708703432238,-107.29489968,0.00024768,2]
[314964114,1708703432352,-92.70510032,0.00024768,2]
[314964115,1708703432366,-567.17015107,0.00024769,2]
[314964117,1708703432377,-274.29195046,0.00024769,2]
[314964147,1708703438144,-250.0,0.00024759,2]
[314964148,1708703438155,-692.58789847,0.00024769,2]
[314964149,1708703438166,-1188.44,0.00024797,2]
[314964150,1708703438178,-1030.5,0.00024799,2]
[314964151,1708703438189,-155.0,0.00024846,2]
[314964152,1708703438201,-184.71550791,0.00024848,2]
[314964153,1708703438212,-150.0,0.00024855,2]
[314964154,1708703438223,-162.75998622,0.00024856,2]
[314964155,1708703438234,-999.99,0.00024856,2]
[314964157,1708703438245,-2000.0,0.00024869,2]
[314964160,1708703438257,-499.99,0.00024869,2]
[314964162,1708703438267,-2754.9,0.00024869,2]
[314964164,1708703438278,-1680.02,0.0002488,2]
[314964166,1708703438290,-1000.0,0.00024893,2]
[314964168,1708703438300,-150.0,0.00024904,2]
[314964170,1708703438312,-23900.0,0.00024916,2]
[314964172,1708703438323,-5201.57,0.00024916,2]
[314964175,1708703438333,-500.0,0.00024921,2]
[314964177,1708703438348,-200.0,0.00024946,2]
[314964180,1708703438363,-155.0,0.00024954,2]
[314964182,1708703438374,-150.0,0.00025,2]
[314964184,1708703438385,-750.0,0.00025,3]
[314964186,1708703438398,-162.7599862,0.00025078,2]
[314964189,1708703438408,-150.99,0.00025097,2]
[314964191,1708703438419,-1778.69,0.00025107,2]
[314964193,1708703438430,-1824.29,0.00025107,2]
[314964195,1708703438441,-1810.48,0.00025108,2]
[314964197,1708703438452,-1822.16,0.0002511,2]
[314964200,1708703438463,-1797.36,0.00025111,2]
[314964202,1708703438474,-1846.04,0.00025112,2]
[314964204,1708703438485,-1792.34,0.00025112,2]
[314964206,1708703438495,-679.85,0.00025123,2]
[314964208,1708703438506,-156.01,0.00025128,2]
[314964210,1708703438517,-251.89,0.0002517,2]
[314964213,1708703438527,-1673.39,0.00025185,2]
[314964215,1708703438538,-150.0,0.000252,2]
[314964217,1708703438549,-1780.66,0.00025202,2]
[314964219,1708703438560,-1810.4,0.00025207,2]
[314964221,1708703438571,-2041.956,0.00025207,2]
[314964224,1708703438582,-1792.28,0.00025213,2]
[314964226,1708703438593,-1800.18,0.00025214,2]
[314964228,1708703438604,-1797.34,0.00025215,2]
[314964230,1708703438620,-1807.7,0.00025215,2]
[314964232,1708703438631,-1787.2,0.00025217,2]
[314964235,1708703438642,-1786.26,0.00025217,2]
[314964236,1708703438653,-1782.32,0.00025218,2]
[314964237,1708703438664,-1811.91,0.00025219,2]
[314964238,1708703438676,-1810.21,0.00025219,2]
[314964239,1708703438687,-1843.66,0.0002522,2]
[314964240,1708703438699,-1823.73,0.0002522,2]
[314964241,1708703438710,-1797.05,0.0002522,2]
[314964242,1708703438721,-635.917789,0.00025282,2]
[314964243,1708703438732,-162.7599862,0.000253,2]
[314964244,1708703438743,-251.89,0.00025303,2]
[314964245,1708703438753,-150.0,0.000254,2]
[314964246,1708703438764,-251.89,0.00025435,2]
[314964247,1708703438775,-162.7599862,0.00025521,2]
[314964248,1708703438787,-251.89,0.00025568,2]
[314964249,1708703438798,-150.0,0.000256,2]
[314964250,1708703438809,-251.89,0.000257,2]
[314964251,1708703438820,-162.7599862,0.00025743,2]
[314964252,1708703438830,-200.0,0.000258,2]
[314964253,1708703438841,-251.89,0.00025832,2]
[314964254,1708703438852,-251.89,0.00025965,2]
[314964255,1708703438865,-162.7599862,0.00025965,2]
[314964256,1708703438876,-150.0,0.00026079,2]
[314964257,1708703438886,-251.89,0.00026097,2]
[314964258,1708703438897,-162.7599862,0.00026187,2]
[314964259,1708703438909,-251.89,0.0002623,2]
[314964260,1708703438919,-1823.83,0.00026238,2]
[314964261,1708703438930,-250.0,0.00026294,2]
[314964262,1708703438940,-177.74,0.00026294,2]
[314964263,1708703438952,-275.34316015,0.00026294,2]
[314964264,1708703438963,-251.89,0.00026362,2]
[314964265,1708703438973,-150.0,0.00026395,2]
[314964266,1708703438984,-162.7599862,0.00026409,2]
[314964267,1708703438995,-1030.5,0.00026443,2]
[314964268,1708703439007,-251.89,0.00026495,2]
[314964269,1708703439020,-1500.0,0.00026527,2]
[314964270,1708703439031,-1680.02,0.0002653,2]
[314964271,1708703439041,-251.89,0.00026627,2]
[314964272,1708703439051,-162.7599862,0.00026631,2]
[314964273,1708703439063,-251.89,0.0002676,2]
[314964274,1708703439075,-283.699999,0.000268,2]
[314964275,1708703439087,-177.74,0.00026842,2]
[314964276,1708703439099,-162.7599862,0.00026852,2]
[314964277,1708703439113,-251.89,0.00026892,2]
[314964278,1708703439124,-2816.0,0.000269,2]
[314964279,1708703439134,-18014.0,0.000269,2]
[314964280,1708703439155,-443.0,0.00026971,2]
[314964281,1708703439169,-502.03619067,0.00027,2]
[314964282,1708703439182,-1110.41415957,0.00027,2]
[314964283,1708703439194,-800.0,0.00027,3]
[314964284,1708703439206,-251.89,0.00027025,2]
[314964285,1708703439218,-16901.95421435,0.00027057,2]
[314964286,1708703439229,-162.7599862,0.00027074,2]
[314964287,1708703439240,-251.89,0.00027157,2]
[314964288,1708703439251,-177.2573362,0.00027179,2]
[314964289,1708703439263,-425.33306188,0.0002718,2]
[314964290,1708703439275,-553.25038469,0.0002718,2]
[314964291,1708703439285,-1024.45014043,0.0002718,2]
[314964292,1708703439297,-8747.1034218,0.0002718,2]
[314964293,1708703439307,-2085.52963305,0.0002718,2]
[314964294,1708703439319,-1063533.61207516,0.00027183,2]
[314964295,1708703439330,-174.47637452,0.00027183,2]
[314964296,1708703439342,-180.52632556,0.00027183,2]
[314964297,1708703439353,-203.0,0.00027183,2]
[314964298,1708703439367,-170.35022239,0.00027184,13]
[314964299,1708703439378,-553.25038469,0.00027184,2]
[314964300,1708703439390,-1026475.58141659,0.00027184,2]
[314964301,1708703439401,-2529.717,0.00027194,2]
[314964302,1708703439412,-5388.1413,0.00027194,2]
[314964303,1708703439423,-1000.0,0.00027194,2]
[314964304,1708703439435,-2500.0,0.00027194,2]
[314964305,1708703439446,-188.38867403,0.00027195,2]
[314964306,1708703439456,-184.67087336,0.00027195,2]
[314964307,1708703439469,-4575.25846172,0.00027195,2]
[314964308,1708703439481,-277.57,0.00027199,2]
[314964309,1708703439493,-221.10687063,0.00027269,2]
[314964310,1708703439504,-500.0,0.00027279,2]
[314964311,1708703439515,-500.0,0.00027279,2]
[314964312,1708703439527,-500.0,0.00027279,2]
[314964313,1708703439539,-500.0,0.00027279,2]
[314964314,1708703439551,-196.44862301,0.00027279,2]
[314964315,1708703439564,-500.0,0.00027279,2]
[314964316,1708703439577,-500.0,0.00027279,2]
[314964317,1708703439590,-500.0,0.00027279,2]
[314964318,1708703439601,-500.0,0.00027279,2]
[314964319,1708703439616,-500.0,0.00027279,2]
[314964320,1708703439627,-525.82220875,0.00027279,2]
[314964321,1708703439639,-208.10982982,0.00027279,2]
[314964322,1708703439650,-643.40850113,0.00027279,2]
[314964323,1708703439662,-500.0,0.00027279,2]
[314964324,1708703439674,-432.56521848,0.00027279,2]
[314964325,1708703439686,-529.53474465,0.00027279,2]
[314964326,1708703439698,-589.7001835,0.00027279,2]
[314964327,1708703439710,-501.36005095,0.00027279,2]
[314964328,1708703439721,-500.0,0.00027279,2]
[314964329,1708703439733,-1033734.391587,0.0002728,3]
[314964330,1708703439744,-1572320.63237681,0.0002728,3]
[314964331,1708703439760,-684201.11418554,0.0002728,3]
[314964332,1708703439775,-262127.94904129,0.0002728,3]
[314964333,1708703439788,-23782.73276259,0.0002728,3]
[314964334,1708703439801,-3486.36000001,0.0002728,3]
[314964335,1708703441365,-1008.53065537,0.00025077,2]
[314964336,1708703441374,-163.47921411,0.0002708,2]
[314964337,1708703441399,-2336.52078589,0.0002708,2]
[314964338,1708703441409,-507603.47921406,0.0002728,3]
[314964339,1708703441421,-453.04925512,0.0002728,3]
[314964352,1708703443012,-561.76923624,0.0002728,3]
[314964353,1708703445137,-1191.64184778,0.0002728,3]
[314964354,1708703445176,-1781.06269634,0.0002728,3]
[314964355,1708703445188,-1062.18173062,0.0002728,3]
[314964356,1708703445207,-5422.8809866,0.0002728,3]
[314964357,1708703445305,-500.0,0.0002728,3]
[314964358,1708703445316,-1627.19033047,0.0002728,3]
[314964359,1708703445328,-5875.98111683,0.0002728,3]
[314964360,1708703445339,-3206.99736884,0.0002728,3]
[314964362,1708703445351,-1603.07574289,0.0002728,3]
[314964386,1708703446244,-2347.46759022,0.0002728,3]
[314964387,1708703446256,-16468.79961458,0.0002728,3]
[314964388,1708703446267,-46158.16049527,0.0002728,3]
[314964389,1708703446279,-2544.75,0.0002728,3]
[314964390,1708703446370,-36214.05221379,0.0002728,3]
[314964391,1708703446483,-1175.37,0.0002728,3]
[314964392,1708703446494,-2200.0,0.0002728,3]
[314964405,1708703470461,4606741.00512914,0.00023,2]
[314964406,1708703481891,803.51379512,9e-05,2]
[314964407,1708703493175,1078.69914635,0.0001,2]
[314964408,1708703494011,944.75280092,0.00022,2]
[314964409,1708703497673,3762.29487045,0.00011,2]
[314964410,1708703514604,649.99,0.0002276,2]
[314964411,1708703514986,24021.2012473,6.94e-05,2]
[314964412,1708703522045,1504.61964342,0.000155,2]
[314964413,1708703548044,1743.33672122,0.00015,2]
[314964414,1708703556795,222.08276626,0.0002211,2]
[314964415,1708703575757,437.96007265,0.0002,2]
[314964416,1708703584367,31230.17177998,0.000225,2]
[314964417,1708703595492,4737.31035227,0.0001305,2]
[314964418,1708703595995,240.31527653,0.000101,2]
[314964419,1708703621519,3690.24799038,0.0002,2]
[314964420,1708703628468,6160.80721672,0.000142,2]
[314964421,1708703628719,6653.0,0.0002,2]
[314964422,1708703631082,1638.53529416,0.000181,2]
[314964423,1708703632677,752594.88399305,0.00023,2]
[314964425,1708703648461,200.0,0.0001634,2]
[314964426,1708703650083,68783.46554778,0.0002,2]
[314964427,1708703659852,1419.85700002,0.0002,2]
[314964428,1708703663650,624.91103913,0.00018,2]
[314964429,1708703665842,1247.42833108,0.000137,2]
[314964430,1708703666445,427.43398083,0.00022,2]
[314964432,1708703960523,155.0,0.00022,2]
[314964433,1708703976525,200.0,0.00022,2]
[314964434,1708703992525,200.0,0.00022,2]
[314964435,1708704010518,200.0,0.00022,2]
[314964436,1708704030517,200.0,0.00022,2]
[314964437,1708704046549,200.0,0.00022,2]
[314964439,1708704156861,203.19833585,0.00021978,2]
[314964441,1708704406132,-224.27660387,0.00023654,2]
[314964442,1708704414591,611.86,0.00022969,2]
[314964443,1708704426561,845.0,0.00026794,30]
[314964444,1708704562220,-485.73381817,0.00023638,2]
[314964445,1708704562248,-150.0,0.00023639,2]
[314964446,1708704562273,-36289.3225149,0.0002364,2]
[314964447,1708704562300,-579.32619459,0.00023654,2]
[314964448,1708704562327,-415.2779608,0.00023655,2]
[314964449,1708704562356,-1049.28241581,0.00023656,2]
[314964450,1708704562383,-282.3492782,0.000237,2]
[314964451,1708704562409,-12557.45071787,0.00023999,2]
[314964452,1708704562434,-726.272159,0.00024,3]
[314964453,1708704563965,213.08384221,0.00023638,2]
[314964454,1708704566582,1563.0,0.00023638,2]
[314964484,1708704632136,-294.88375833,0.00024099,2]
[314964485,1708704632149,-517.638994,0.00024099,2]
[314964486,1708704632262,-399.68136722,0.00024099,2]
[314964487,1708704632272,-1024.90758466,0.000241,2]
[314964488,1708704632282,-203.0,0.00024183,2]
[314964489,1708704632294,-155.87814937,0.0002425,2]
[314964490,1708704632304,-179.08280221,0.00024405,2]
[314964491,1708704632313,-327.24986568,0.0002442,2]
[314964492,1708704632323,-500.0,0.00024505,2]
[314964493,1708704632332,-179.08280216,0.00024531,2]
[314964494,1708704632342,-713.33102005,0.00024718,2]
[314964495,1708704632354,-277.02897995,0.00024718,2]
[314964496,1708704632365,-182.97102005,0.00024718,2]
[314964497,1708704632377,-1727.96399541,0.00024718,2]
[314964498,1708704632389,-808.40388219,0.00024718,2]
[314964499,1708704632410,-1218.07897938,0.00024718,2]
[314964500,1708704632445,-510.85645053,0.00024718,2]
[314964529,1708704632751,-300.0,0.00024718,2]
[314964562,1708704638109,-179.08280216,0.00024657,2]
[314964564,1708704638118,-2841.58115909,0.00024718,2]
[314964566,1708704638130,-515.85435007,0.00024718,2]
[314964567,1708704638141,-848.26710872,0.00024718,2]
[314964568,1708704638156,-706.17412331,0.00024718,2]
[314964570,1708704638205,-14239.84893125,0.00024718,2]
[314964571,1708704638215,-179.08280216,0.00024783,2]
[314964572,1708704638225,-315.31,0.00024791,2]
[314964573,1708704638239,-1020.61,0.00024797,2]
[314964574,1708704638248,-1000.0,0.00024835,2]
[314964575,1708704638258,-200.0,0.00024856,2]
[314964576,1708704638267,-250.0,0.00024909,2]
[314964577,1708704638277,-157.44,0.00024911,2]
[314964578,1708704638287,-2000.0,0.00024941,2]
[314964579,1708704638300,-1478.54,0.00024963,2]
[314964580,1708704638310,-4522.5668,0.0002499,2]
[314964581,1708704638320,-250.0,0.0002502,2]
[314964582,1708704638330,-4506.7663877,0.0002509,2]
[314964583,1708704638340,-2599.35643726,0.0002509,2]
[314964584,1708704638350,-611.86,0.00025233,2]
[314964585,1708704638360,-157.44,0.00025266,2]
[314964586,1708704638370,-499.99,0.00025438,2]
[314964587,1708704638379,-157.44,0.00025622,2]
[314964588,1708704638393,-840.01,0.0002588,2]
[314964589,1708704638402,-177.74,0.00025898,2]
[314964590,1708704638412,-514.34,0.00025898,2]
[314964591,1708704638421,-1500.0,0.00025912,2]
[314964592,1708704638431,-157.44,0.00025978,2]
[314964593,1708704638441,-1394.49,0.00025991,2]
[314964594,1708704638450,-210.0,0.00026003,2]
[314964595,1708704638460,-150.0,0.00026079,2]
[314964596,1708704638471,-1404.85563975,0.00026098,2]
[314964597,1708704638481,-152.53,0.00026116,2]
[314964598,1708704638491,-1563.0,0.00026298,2]
[314964599,1708704638500,-463.01709819,0.00026299,2]
[314964600,1708704638510,-472.64439452,0.000263,2]
[314964601,1708704638519,-40666.1036,0.000263,2]
[314964602,1708704638527,-157.44,0.00026334,2]
[314964603,1708704638536,-1404.85563975,0.00026345,2]
[314964604,1708704638552,-18014.0,0.000264,2]
[314964605,1708704638562,-2816.0,0.000264,2]
[314964606,1708704638571,-548.68002752,0.0002643,2]
[314964607,1708704638582,-1020.61,0.0002644,2]
[314964608,1708704638591,-177.74,0.00026446,2]
[314964609,1708704638601,-254.64422219,0.00026519,2]
[314964610,1708704638610,-1326.15049843,0.00026527,2]
[314964611,1708704638620,-174.47637452,0.00026528,2]
[314964612,1708704638629,-180.52632556,0.00026528,2]
[314964613,1708704638640,-1063533.61207516,0.00026529,2]
[314964614,1708704638649,-481118.04482061,0.0002653,2]
[314964615,1708704638658,-10704.8903,0.00026532,2]
[314964616,1708704638668,-1404.85563975,0.0002666,2]
[314964617,1708704638677,-157.44,0.0002669,2]
[314964618,1708704638687,-7081.7983,0.00026697,2]
[314964619,1708704638696,-484.5362,0.00026697,2]
[314964620,1708704638706,-177.2573362,0.00026698,2]
[314964621,1708704638715,-2500.0,0.00026698,2]
[314964622,1708704638724,-1326.15049843,0.00026721,2]
[314964623,1708704638733,-548.68002749,0.00026765,2]
[314964624,1708704638743,-30270.99156265,0.00026795,2]
[314964625,1708704638752,-1000.0,0.00026797,2]
[314964626,1708704638761,-5388.1413,0.00026798,2]
[314964627,1708704638771,-14785.32055461,0.00026798,2]
[314964628,1708704638781,-16901.95421435,0.00026798,2]
[314964629,1708704638791,-184.67087336,0.00026799,2]
[314964630,1708704638803,-720.52009762,0.00026799,3]
[314964631,1708704638813,-4708.58242364,0.00026799,2]
[314964632,1708704638822,-212.66653094,0.00026799,2]
[314964633,1708704638831,-2306.12144325,0.00026799,2]
[314964634,1708704638840,-506.16200013,0.00026799,2]
[314964635,1708704638850,-283.699999,0.000268,2]
[314964636,1708704638859,-1326.15049843,0.00026882,2]
[314964637,1708704638869,-254.64422219,0.00026889,2]
[314964638,1708704638878,-100000.0,0.00026899,2]
[314964639,1708704638889,-245000.0,0.00026899,2]
[314964640,1708704638898,-500.0,0.00026899,2]
[314964641,1708704638907,-11176.0988,0.00026899,2]
[314964642,1708704638917,-2529.717,0.00026899,2]
[314964643,1708704638926,-5000.0,0.000269,2]
[314964644,1708704638936,-277.57,0.00026906,2]
[314964645,1708704638945,-203.0,0.00026938,6]
[314964646,1708704638955,-468.0,0.00026971,2]
[314964647,1708704638965,-351.27,0.00026994,2]
[314964648,1708704638975,-182821.56844076,0.00027,2]
[314964649,1708704638985,-26173.97294743,0.0002701,2]
[314964650,1708704638994,-157.44,0.00027046,2]
[314964651,1708704639003,-1404.85563975,0.00027049,2]
[314964652,1708704639012,-1500.0,0.00027093,2]
[314964653,1708704639021,-548.68002749,0.00027099,2]
[314964654,1708704639030,-188.22402878,0.00027279,2]
[314964655,1708704639040,-2803.16789009,0.00027279,2]
[314964656,1708704639051,-24607.31698892,0.0002728,3]
[314964657,1708704639061,-251.89,0.0002729,2]
[314964658,1708704639070,-211.0,0.00027294,2]
[314964659,1708704639079,-3002.57546611,0.00027296,2]
[314964660,1708704639088,-212.66653094,0.00027296,2]
[314964661,1708704639097,-14559.5615,0.00027297,2]
[314964662,1708704639106,-4708.58242364,0.00027298,2]
[314964663,1708704639115,-159.13,0.00027298,2]
[314964664,1708704639125,-170.35022239,0.000273,13]
[314964665,1708704639134,-16901.95421431,0.00027364,2]
[314964666,1708704639144,-254.64422219,0.00027389,2]
[314964667,1708704639153,-162.12521125,0.00027393,2]
[314964668,1708704639164,-5751.07051415,0.00027394,2]
[314964669,1708704639173,-345.86649632,0.00027395,2]
[314964670,1708704639183,-155.0,0.00027396,2]
[314964671,1708704639192,-500.0,0.00027396,2]
[314964672,1708704639202,-500.0,0.00027396,2]
[314964673,1708704639213,-196.44862301,0.00027396,2]
[314964674,1708704639223,-500.0,0.00027396,2]
[314964675,1708704639233,-500.0,0.00027396,2]
[314964676,1708704639242,-500.0,0.00027396,2]
[314964677,1708704639251,-500.0,0.00027396,2]
[314964678,1708704639262,-500.0,0.00027396,2]
[314964679,1708704639272,-643.40850113,0.00027396,2]
[314964680,1708704639281,-525.82220875,0.00027396,2]
[314964681,1708704639290,-208.10982982,0.00027396,2]
[314964682,1708704639301,-501.36005095,0.00027396,2]
[314964683,1708704639310,-432.56521848,0.00027396,2]
[314964684,1708704639320,-529.53474465,0.00027396,2]
[314964685,1708704639329,-500.0,0.00027396,2]
[314964686,1708704639339,-500.0,0.00027396,2]
[314964687,1708704639348,-500.0,0.00027396,2]
[314964688,1708704639358,-500.0,0.00027396,2]
[314964689,1708704639368,-589.7001835,0.00027396,2]
[314964690,1708704639377,-472.82968739,0.00027396,2]
[314964691,1708704639391,-296.51527946,0.00027396,2]
[314964692,1708704639401,-229.15836144,0.00027396,2]
[314964693,1708704639411,-445.55282195,0.00027396,2]
[314964694,1708704639423,-272.5696016,0.00027396,2]
[314964695,1708704639432,-464.08466199,0.00027396,2]
[314964696,1708704639442,-500.0,0.00027397,2]
[314964697,1708704639453,-503.0,0.00027397,2]
[314964698,1708704639466,-347.39248828,0.00027397,2]
[314964699,1708704639478,-505.12344493,0.00027397,2]
[314964700,1708704639487,-511.5226388,0.00027397,2]
[314964701,1708704639496,-264.24950795,0.00027397,2]
[314964702,1708704639506,-500.0,0.00027397,2]
[314964703,1708704639515,-502.69188019,0.00027397,2]
[314964704,1708704639525,-501.47622441,0.00027397,2]
[314964705,1708704639534,-505.1421124,0.00027397,2]
[314964706,1708704639545,-503.29651801,0.00027397,2]
[314964707,1708704639556,-246.37425149,0.00027397,2]
[314964708,1708704639565,-504.43612984,0.00027397,2]
[314964709,1708704639575,-501.42970043,0.00027397,2]
[314964710,1708704639584,-500.0,0.00027397,2]
[314964711,1708704639594,-502.02042935,0.00027397,2]
[314964712,1708704639603,-501.71193028,0.00027397,2]
[314964713,1708704639613,-527.4023857,0.00027397,2]
[314964714,1708704639622,-500.0,0.00027397,2]
[314964715,1708704639632,-502.77661208,0.00027397,2]
[314964716,1708704639641,-502.01075234,0.00027397,2]
[314964717,1708704639650,-501.48581882,0.00027397,2]
[314964718,1708704639660,-502.09281741,0.00027397,2]
[314964719,1708704639669,-629.89375652,0.00027397,2]
[314964720,1708704639678,-571.67965057,0.00027397,2]
[314964721,1708704639687,-202.4342808,0.00027397,2]
[314964722,1708704639697,-502.66450945,0.00027397,2]
[314964723,1708704639706,-501.95488215,0.00027397,2]
[314964724,1708704639716,-502.46324845,0.00027397,2]
[314964725,1708704639725,-500.0,0.00027397,2]
[314964726,1708704639735,-500.0,0.00027397,2]
[314964727,1708704639744,-500.0,0.00027397,2]
[314964728,1708704639753,-500.0,0.00027397,2]
[314964729,1708704639762,-508.20716793,0.00027397,2]
[314964730,1708704639772,-500.0,0.00027397,2]
[314964731,1708704639781,-507.23790442,0.00027397,2]
[314964732,1708704639790,-505.38294839,0.00027397,2]
[314964733,1708704639802,-500.0,0.00027397,2]
[314964734,1708704639811,-425.17482121,0.00027397,2]
[314964736,1708704639820,-180.84550147,0.00027397,2]
[314964739,1708704639829,-500.0,0.00027397,2]
[314964741,1708704639838,-500.0,0.00027397,2]
[314964744,1708704639847,-500.0,0.00027397,2]
[314964746,1708704639857,-502.34275584,0.00027397,2]
[314964747,1708704639867,-500.0,0.00027397,2]
[314964749,1708704639876,-500.0,0.00027397,2]
[314964751,1708704639885,-500.0,0.00027397,2]
[314964754,1708704639895,-500.0,0.00027397,2]
[314964756,1708704639904,-500.0,0.00027397,2]
[314964759,1708704639913,-500.0,0.00027397,2]
[314964761,1708704639923,-500.0,0.00027397,2]
[314964763,1708704639932,-500.0,0.00027397,2]
[314964765,1708704639942,-500.0,0.00027397,2]
[314964767,1708704639951,-514.22822762,0.00027397,2]
[314964769,1708704639960,-500.0,0.00027397,2]
[314964771,1708704639969,-500.0,0.00027397,2]
[314964773,1708704639979,-500.0,0.00027397,2]
[314964775,1708704639988,-510.13743897,0.00027397,2]
[314964777,1708704639997,-500.0,0.00027397,2]
[314964779,1708704640007,-500.0,0.00027397,2]